[Event "Betsys MČR v online bleskovém šachu 2021"]
[Site "Chess.com"]
[Date "2021.04.17"]
[Round "5"]
[White "Rognort"]
[Black "rolkento"]
[Result "0-1"]
[WhiteElo "1800"]
[BlackElo "2241"]
[TimeControl "180+1"]
[EndTime "9:43:10 PDT"]
[Termination "Uživatel rolkento zvítězil po vzdání soupeře"]

1. e4 {[%clk 0:03:00.9]} 1... e6 {[%clk 0:02:59.8]} 2. c4 {[%clk 0:03:00.5]}
2... d5 {[%clk 0:03:00.1]} 3. cxd5 {[%clk 0:03:00.8]} 3... exd5 {[%clk
0:03:00.6]} 4. exd5 {[%clk 0:03:01.4]} 4... Nf6 {[%clk 0:03:00.7]} 5. Bc4 {[%clk
0:03:00.2]} 5... Bd6 {[%clk 0:02:59.8]} 6. Nc3 {[%clk 0:02:58.2]} 6... O-O
{[%clk 0:03:00.1]} 7. Nf3 {[%clk 0:02:39.5]} 7... Re8+ {[%clk 0:02:57.5]} 8. Ne2
{[%clk 0:02:33]} 8... Bg4 {[%clk 0:02:54.2]} 9. Qb3 {[%clk 0:02:31.5]} 9... Nbd7
{[%clk 0:02:48.1]} 10. h3 {[%clk 0:02:25.6]} 10... Bxf3 {[%clk 0:02:47.6]} 11.
Qxf3 {[%clk 0:02:23.9]} 11... Ne5 {[%clk 0:02:47.4]} 12. Qb3 {[%clk 0:02:20.8]}
12... Nxc4 {[%clk 0:02:47.1]} 13. Qxc4 {[%clk 0:02:21.7]} 13... Qe7 {[%clk
0:02:46.5]} 14. d4 {[%clk 0:02:17]} 14... Qe4 {[%clk 0:02:31.2]} 15. Be3 {[%clk
0:02:04.9]} 15... Nxd5 {[%clk 0:02:26.1]} 16. O-O {[%clk 0:01:51.5]} 16... Nxe3
{[%clk 0:02:25]} 17. fxe3 {[%clk 0:01:51.2]} 17... Qxe3+ {[%clk 0:02:25]} 18.
Kh1 {[%clk 0:01:51.3]} 18... Qxe2 {[%clk 0:02:14.8]} 19. Rxf7 {[%clk 0:01:48.4]}
19... Qxc4 {[%clk 0:02:09.7]} 0-1

[Event "Betsys MČR v online bleskovém šachu 2021"]
[Site "Chess.com"]
[Date "2021.04.17"]
[Round "5"]
[White "KarelZalesky"]
[Black "Hollow_Head"]
[Result "1-0"]
[WhiteElo "1625"]
[BlackElo "1073"]
[TimeControl "180+1"]
[EndTime "9:43:23 PDT"]
[Termination "Uživatel KarelZalesky zvítězil matem"]

1. e4 {[%clk 0:03:00.9]} 1... e5 {[%clk 0:02:59.2]} 2. Nf3 {[%clk 0:03:00.5]}
2... Nc6 {[%clk 0:02:59.8]} 3. Bb5 {[%clk 0:02:59.4]} 3... Nd4 {[%clk
0:03:00.3]} 4. Nxd4 {[%clk 0:02:58]} 4... exd4 {[%clk 0:03:01.2]} 5. O-O {[%clk
0:02:57.2]} 5... c6 {[%clk 0:03:01.5]} 6. Be2 {[%clk 0:02:55.8]} 6... Bd6 {[%clk
0:02:59.6]} 7. g3 {[%clk 0:02:53.5]} 7... Nf6 {[%clk 0:02:58.5]} 8. Bf3 {[%clk
0:02:52.5]} 8... Bc7 {[%clk 0:02:57]} 9. d3 {[%clk 0:02:51.1]} 9... d5 {[%clk
0:02:57.1]} 10. exd5 {[%clk 0:02:45.9]} 10... cxd5 {[%clk 0:02:56.9]} 11. Re1+
{[%clk 0:02:45.1]} 11... Be6 {[%clk 0:02:53]} 12. c3 {[%clk 0:02:25.3]} 12...
O-O {[%clk 0:02:52.5]} 13. cxd4 {[%clk 0:02:23.3]} 13... Qc8 {[%clk 0:02:44.1]}
14. Nc3 {[%clk 0:02:18.1]} 14... Ng4 {[%clk 0:02:35.6]} 15. Bxd5 {[%clk
0:02:04.3]} 15... Bxd5 {[%clk 0:02:31]} 16. Nxd5 {[%clk 0:02:03.6]} 16... Ba5
{[%clk 0:02:23.3]} 17. Ne7+ {[%clk 0:02:01.6]} 17... Kh8 {[%clk 0:02:22.2]} 18.
Nxc8 {[%clk 0:02:01.5]} 18... Bxe1 {[%clk 0:02:23.1]} 19. Qxe1 {[%clk
0:02:01.2]} 19... Raxc8 {[%clk 0:02:23.4]} 20. h3 {[%clk 0:01:56.5]} 20... Nh6
{[%clk 0:02:19.7]} 21. Bxh6 {[%clk 0:01:54.4]} 21... gxh6 {[%clk 0:02:19.9]} 22.
Qe5+ {[%clk 0:01:54.2]} 22... Kg8 {[%clk 0:02:20.2]} 23. Re1 {[%clk 0:01:50.7]}
23... b6 {[%clk 0:02:10.5]} 24. Re4 {[%clk 0:01:49.5]} 24... a5 {[%clk
0:02:07.5]} 25. Rg4# {[%clk 0:01:49.2]} 1-0

[Event "Betsys MČR v online bleskovém šachu 2021"]
[Site "Chess.com"]
[Date "2021.04.17"]
[Round "5"]
[White "Michaela1994"]
[Black "mayerrs"]
[Result "1-0"]
[WhiteElo "1629"]
[BlackElo "1879"]
[TimeControl "180+1"]
[EndTime "9:43:46 PDT"]
[Termination "Uživatel Michaela1994 zvítězil po vzdání soupeře"]

1. e4 {[%clk 0:03:00.9]} 1... g6 {[%clk 0:02:59.5]} 2. d4 {[%clk 0:02:59.9]}
2... Bg7 {[%clk 0:02:59.6]} 3. Nf3 {[%clk 0:02:59.5]} 3... b6 {[%clk 0:03:00]}
4. Bd3 {[%clk 0:02:59.1]} 4... Bb7 {[%clk 0:03:00.5]} 5. O-O {[%clk 0:02:57.3]}
5... a6 {[%clk 0:03:00.6]} 6. Nc3 {[%clk 0:02:55.7]} 6... e6 {[%clk 0:03:01]} 7.
Be3 {[%clk 0:02:51.1]} 7... Ne7 {[%clk 0:03:00.5]} 8. Ne2 {[%clk 0:02:44.6]}
8... O-O {[%clk 0:03:00.1]} 9. c4 {[%clk 0:02:44.2]} 9... d5 {[%clk 0:02:59]}
10. cxd5 {[%clk 0:02:42.6]} 10... exd5 {[%clk 0:02:59.9]} 11. e5 {[%clk
0:02:40.9]} 11... Nd7 {[%clk 0:02:59.9]} 12. Qd2 {[%clk 0:02:33.6]} 12... Rc8
{[%clk 0:02:57.9]} 13. Rac1 {[%clk 0:02:32]} 13... c5 {[%clk 0:02:52.3]} 14. Bh6
{[%clk 0:02:27]} 14... cxd4 {[%clk 0:02:40.3]} 15. Nexd4 {[%clk 0:02:19]} 15...
Nc5 {[%clk 0:02:22.2]} 16. Bb1 {[%clk 0:02:10.9]} 16... Ne4 {[%clk 0:02:15.5]}
17. Bxe4 {[%clk 0:02:02.8]} 17... dxe4 {[%clk 0:02:15.2]} 18. Bxg7 {[%clk
0:02:02.1]} 18... Kxg7 {[%clk 0:02:06.2]} 19. Rxc8 {[%clk 0:01:56.1]} 19... Nxc8
{[%clk 0:01:56.4]} 20. Ng5 {[%clk 0:01:52.3]} 20... h6 {[%clk 0:01:50.5]} 21.
Nge6+ {[%clk 0:01:49.3]} 21... fxe6 {[%clk 0:01:47.9]} 22. Nxe6+ {[%clk
0:01:49.2]} 22... Kg8 {[%clk 0:01:45.5]} 23. Nxd8 {[%clk 0:01:48.1]} 23... Ne7
{[%clk 0:01:45.5]} 1-0

[Event "Betsys MČR v online bleskovém šachu 2021"]
[Site "Chess.com"]
[Date "2021.04.17"]
[Round "5"]
[White "jarda1955"]
[Black "CzechMerlin"]
[Result "1-0"]
[WhiteElo "1991"]
[BlackElo "1666"]
[TimeControl "180+1"]
[EndTime "9:43:49 PDT"]
[Termination "Uživatel jarda1955 zvítězil matem"]

1. d4 {[%clk 0:03:00.9]} 1... f5 {[%clk 0:02:57.4]} 2. Nf3 {[%clk 0:02:58.9]}
2... Nf6 {[%clk 0:02:57.5]} 3. g3 {[%clk 0:02:59]} 3... g6 {[%clk 0:02:57.6]} 4.
Bg2 {[%clk 0:02:59.1]} 4... Bg7 {[%clk 0:02:58.1]} 5. O-O {[%clk 0:02:58.8]}
5... O-O {[%clk 0:02:58.1]} 6. b3 {[%clk 0:02:58.8]} 6... d6 {[%clk 0:02:58.2]}
7. Bb2 {[%clk 0:02:58.5]} 7... Nc6 {[%clk 0:02:57.4]} 8. d5 {[%clk 0:02:56]}
8... Nb8 {[%clk 0:02:51.8]} 9. c4 {[%clk 0:02:54.8]} 9... Nbd7 {[%clk
0:02:51.8]} 10. Nbd2 {[%clk 0:02:51.7]} 10... c6 {[%clk 0:02:51.6]} 11. Nd4
{[%clk 0:02:40.2]} 11... c5 {[%clk 0:02:48.1]} 12. Ne6 {[%clk 0:02:39.1]} 12...
Qe8 {[%clk 0:02:48.1]} 13. Nc7 {[%clk 0:02:36.4]} 13... Qd8 {[%clk 0:02:47]} 14.
Nxa8 {[%clk 0:02:36.3]} 14... b6 {[%clk 0:02:47]} 15. e4 {[%clk 0:02:29.6]}
15... Bb7 {[%clk 0:02:42.3]} 16. exf5 {[%clk 0:02:23.4]} 16... gxf5 {[%clk
0:02:40.5]} 17. Nxb6 {[%clk 0:02:21.9]} 17... axb6 {[%clk 0:02:39.9]} 18. Nf3
{[%clk 0:02:19.1]} 18... Qe8 {[%clk 0:02:24.6]} 19. Ng5 {[%clk 0:02:18.3]} 19...
Qg6 {[%clk 0:02:13.3]} 20. Ne6 {[%clk 0:02:16.9]} 20... Re8 {[%clk 0:02:12.4]}
21. Nxg7 {[%clk 0:02:12.5]} 21... Kxg7 {[%clk 0:02:11.6]} 22. Qe2 {[%clk
0:02:11.4]} 22... Bc8 {[%clk 0:02:07.9]} 23. Rae1 {[%clk 0:02:10.4]} 23... e5
{[%clk 0:02:01.2]} 24. dxe6 {[%clk 0:02:08.9]} 24... Nf8 {[%clk 0:02:00.9]} 25.
Qd2 {[%clk 0:02:03.8]} 25... Rxe6 {[%clk 0:01:57.6]} 26. Rxe6 {[%clk 0:02:02.1]}
26... Nxe6 {[%clk 0:01:57.2]} 27. Qxd6 {[%clk 0:02:01.2]} 27... Qh5 {[%clk
0:01:46.1]} 28. Qe7+ {[%clk 0:01:58.7]} 28... Kg6 {[%clk 0:01:45.1]} 29. Qxf6#
{[%clk 0:01:57.3]} 1-0

[Event "Betsys MČR v online bleskovém šachu 2021"]
[Site "Chess.com"]
[Date "2021.04.17"]
[Round "5"]
[White "VojtaT"]
[Black "Patrik_Kohm"]
[Result "1-0"]
[WhiteElo "1736"]
[BlackElo "1373"]
[TimeControl "180+1"]
[EndTime "9:43:52 PDT"]
[Termination "Uživatel VojtaT zvítězil po vzdání soupeře"]

1. e4 {[%clk 0:03:00.9]} 1... e6 {[%clk 0:02:59.9]} 2. d4 {[%clk 0:02:59.9]}
2... d5 {[%clk 0:02:58.1]} 3. e5 {[%clk 0:02:59.8]} 3... c5 {[%clk 0:02:58.1]}
4. c3 {[%clk 0:02:59.3]} 4... Nc6 {[%clk 0:02:58.1]} 5. Nf3 {[%clk 0:02:59.1]}
5... Qb6 {[%clk 0:02:58]} 6. Be2 {[%clk 0:02:59.1]} 6... cxd4 {[%clk 0:02:57.5]}
7. cxd4 {[%clk 0:02:57.6]} 7... Bb4+ {[%clk 0:02:57.4]} 8. Kf1 {[%clk
0:02:56.7]} 8... Nge7 {[%clk 0:02:54.1]} 9. a3 {[%clk 0:02:52.1]} 9... Ba5
{[%clk 0:02:43]} 10. b4 {[%clk 0:02:50.7]} 10... Nxb4 {[%clk 0:02:39.5]} 11.
axb4 {[%clk 0:02:50.7]} 11... Bxb4 {[%clk 0:02:39.6]} 12. Bd2 {[%clk 0:02:43.8]}
12... Bxd2 {[%clk 0:02:35.4]} 13. Nbxd2 {[%clk 0:02:42.5]} 13... O-O {[%clk
0:02:34]} 14. Qb3 {[%clk 0:02:35]} 14... Qd8 {[%clk 0:02:28.8]} 15. g3 {[%clk
0:02:26.2]} 15... Nf5 {[%clk 0:02:27.6]} 16. Kg2 {[%clk 0:02:23.1]} 16... b6
{[%clk 0:02:27]} 17. Rhc1 {[%clk 0:02:18.3]} 17... Bb7 {[%clk 0:02:23.6]} 18.
Qc2 {[%clk 0:01:59.3]} 18... Rc8 {[%clk 0:02:12.3]} 19. Qa4 {[%clk 0:01:59.3]}
19... Ra8 {[%clk 0:02:08.1]} 20. Ba6 {[%clk 0:01:57.2]} 20... Bxa6 {[%clk
0:01:58.9]} 21. Qxa6 {[%clk 0:01:58.1]} 21... Qe7 {[%clk 0:01:55.3]} 22. Rc2
{[%clk 0:01:49.4]} 22... f6 {[%clk 0:01:53]} 23. Rac1 {[%clk 0:01:48.2]} 23...
fxe5 {[%clk 0:01:50.6]} 24. dxe5 {[%clk 0:01:45.2]} 24... Qg5 {[%clk 0:01:49.9]}
25. Nxg5 {[%clk 0:01:44.3]} 1-0

[Event "Betsys MČR v online bleskovém šachu 2021"]
[Site "Chess.com"]
[Date "2021.04.17"]
[Round "5"]
[White "FutureFideMasseur"]
[Black "PremetFugas"]
[Result "1-0"]
[WhiteElo "2437"]
[BlackElo "2129"]
[TimeControl "180+1"]
[EndTime "9:43:53 PDT"]
[Termination "Uživatel FutureFideMasseur zvítězil po vzdání soupeře"]

1. d4 {[%clk 0:03:00.9]} 1... d5 {[%clk 0:02:57.8]} 2. c4 {[%clk 0:03:01]} 2...
dxc4 {[%clk 0:02:57.3]} 3. e4 {[%clk 0:03:00.5]} 3... e5 {[%clk 0:02:55.2]} 4.
Nf3 {[%clk 0:03:00.5]} 4... Bg4 {[%clk 0:02:47.8]} 5. Bxc4 {[%clk 0:02:56.3]}
5... Nf6 {[%clk 0:02:31.1]} 6. Bxf7+ {[%clk 0:02:43.5]} 6... Kxf7 {[%clk
0:02:27.6]} 7. Nxe5+ {[%clk 0:02:43.6]} 7... Ke8 {[%clk 0:02:25.8]} 8. Nxg4
{[%clk 0:02:43.3]} 8... Nxe4 {[%clk 0:01:49.3]} 9. O-O {[%clk 0:02:40.2]} 9...
Be7 {[%clk 0:01:44.3]} 10. Re1 {[%clk 0:02:35.8]} 10... Nf6 {[%clk 0:01:40.2]}
11. Nxf6+ {[%clk 0:02:34.6]} 11... gxf6 {[%clk 0:01:40.1]} 12. Qh5+ {[%clk
0:02:34.5]} 12... Kd7 {[%clk 0:01:40.1]} 13. Qf5+ {[%clk 0:02:26.8]} 13... Ke8
{[%clk 0:01:27.5]} 14. Nc3 {[%clk 0:02:25.9]} 14... Nc6 {[%clk 0:01:19.7]} 15.
Nd5 {[%clk 0:02:13.3]} 15... Nxd4 {[%clk 0:01:16.2]} 16. Qh5+ {[%clk 0:02:11.1]}
16... Kf8 {[%clk 0:01:11]} 17. Bh6+ {[%clk 0:02:08.9]} 17... Kg8 {[%clk
0:01:10.6]} 18. Nxe7+ {[%clk 0:02:05]} 1-0

[Event "Betsys MČR v online bleskovém šachu 2021"]
[Site "Chess.com"]
[Date "2021.04.17"]
[Round "5"]
[White "Vojta0007"]
[Black "JindrichT_JR_CZE"]
[Result "1-0"]
[WhiteElo "1484"]
[BlackElo "994"]
[TimeControl "180+1"]
[EndTime "9:44:07 PDT"]
[Termination "Uživatel Vojta0007 zvítězil po vzdání soupeře"]

1. d4 {[%clk 0:03:00.9]} 1... d5 {[%clk 0:02:58.5]} 2. Nf3 {[%clk 0:02:59.6]}
2... Nc6 {[%clk 0:02:57.9]} 3. e3 {[%clk 0:02:56.7]} 3... Nf6 {[%clk 0:02:58]}
4. c4 {[%clk 0:02:55.2]} 4... e6 {[%clk 0:02:56.8]} 5. Nc3 {[%clk 0:02:50.5]}
5... Ne4 {[%clk 0:02:51.2]} 6. cxd5 {[%clk 0:02:48.1]} 6... Nxc3 {[%clk
0:02:47.9]} 7. bxc3 {[%clk 0:02:45.4]} 7... exd5 {[%clk 0:02:46.2]} 8. c4 {[%clk
0:02:44.9]} 8... Bb4+ {[%clk 0:02:42.9]} 9. Bd2 {[%clk 0:02:43.5]} 9... Bxd2+
{[%clk 0:02:41.8]} 10. Qxd2 {[%clk 0:02:42.9]} 10... O-O {[%clk 0:02:40.8]} 11.
cxd5 {[%clk 0:02:41.7]} 11... Qxd5 {[%clk 0:02:38.7]} 12. Be2 {[%clk 0:02:40.3]}
12... Re8 {[%clk 0:00:13.4]} 13. O-O {[%clk 0:02:39.2]} 13... Bg4 {[%clk
0:00:11.9]} 14. h3 {[%clk 0:02:37.7]} 1-0

[Event "Betsys MČR v online bleskovém šachu 2021"]
[Site "Chess.com"]
[Date "2021.04.17"]
[Round "5"]
[White "Clockwork7orange"]
[Black "VitaRasik"]
[Result "1/2-1/2"]
[WhiteElo "2318"]
[BlackElo "2608"]
[TimeControl "180+1"]
[EndTime "9:44:24 PDT"]
[Termination "Remíza opakováním pozice"]

1. Nc3 {[%clk 0:03:00.9]} 1... g6 {[%clk 0:02:58.9]} 2. e4 {[%clk 0:03:01]} 2...
Bg7 {[%clk 0:02:59.1]} 3. Nf3 {[%clk 0:03:01.2]} 3... d6 {[%clk 0:02:59.4]} 4.
h3 {[%clk 0:03:01.7]} 4... Nf6 {[%clk 0:02:59.5]} 5. d4 {[%clk 0:03:02.3]} 5...
O-O {[%clk 0:02:59.4]} 6. Be3 {[%clk 0:03:03]} 6... b6 {[%clk 0:02:59.6]} 7. Bd3
{[%clk 0:03:03.6]} 7... Bb7 {[%clk 0:02:59]} 8. Qd2 {[%clk 0:03:03.8]} 8... e6
{[%clk 0:02:57.8]} 9. Bh6 {[%clk 0:03:02.9]} 9... c5 {[%clk 0:02:57.2]} 10.
O-O-O {[%clk 0:02:54.6]} 10... c4 {[%clk 0:02:37.4]} 11. Bxc4 {[%clk 0:02:52.6]}
11... Nxe4 {[%clk 0:02:37.3]} 12. Nxe4 {[%clk 0:02:52.4]} 12... Bxe4 {[%clk
0:02:37.1]} 13. Bxg7 {[%clk 0:02:51.5]} 13... Kxg7 {[%clk 0:02:30.6]} 14. Be2
{[%clk 0:02:43.7]} 14... Bxf3 {[%clk 0:02:29.6]} 15. Bxf3 {[%clk 0:02:43.6]}
15... d5 {[%clk 0:02:29.8]} 16. Kb1 {[%clk 0:02:44]} 16... Nd7 {[%clk
0:02:26.4]} 17. h4 {[%clk 0:02:40.9]} 17... h5 {[%clk 0:02:24]} 18. g4 {[%clk
0:02:38.5]} 18... hxg4 {[%clk 0:02:23.5]} 19. Bxg4 {[%clk 0:02:37.6]} 19... Nf6
{[%clk 0:02:21.7]} 20. Bf3 {[%clk 0:02:36.6]} 20... Rh8 {[%clk 0:02:20.1]} 21.
Rdg1 {[%clk 0:02:36.7]} 21... Kf8 {[%clk 0:02:18.4]} 22. Qf4 {[%clk 0:02:29.7]}
22... Rc8 {[%clk 0:02:05.1]} 23. c3 {[%clk 0:02:24.8]} 23... Ke7 {[%clk
0:01:58.3]} 24. a3 {[%clk 0:02:07.8]} 24... b5 {[%clk 0:01:54.7]} 25. Qg5 {[%clk
0:01:57]} 25... Kf8 {[%clk 0:01:41.6]} 26. Qf4 {[%clk 0:01:32.5]} 26... Ke7
{[%clk 0:01:39.5]} 27. Qg5 {[%clk 0:01:32.4]} 27... Kf8 {[%clk 0:01:39]} 28. Qf4
{[%clk 0:01:32.4]} 28... Ke7 {[%clk 0:01:34.5]} 1/2-1/2

[Event "Betsys MČR v online bleskovém šachu 2021"]
[Site "Chess.com"]
[Date "2021.04.17"]
[Round "5"]
[White "Smetanka674"]
[Black "OndrejBorkovec"]
[Result "1-0"]
[WhiteElo "1760"]
[BlackElo "1507"]
[TimeControl "180+1"]
[EndTime "9:44:26 PDT"]
[Termination "Uživatel Smetanka674 zvítězil po vzdání soupeře"]

1. d4 {[%clk 0:03:00.9]} 1... e6 {[%clk 0:02:58.5]} 2. c4 {[%clk 0:03:00.5]}
2... f5 {[%clk 0:02:52.7]} 3. Nc3 {[%clk 0:02:59.7]} 3... Nf6 {[%clk 0:02:51.6]}
4. Nf3 {[%clk 0:02:59.5]} 4... g6 {[%clk 0:02:42.1]} 5. e3 {[%clk 0:02:57.7]}
5... Bg7 {[%clk 0:02:39.6]} 6. Bd3 {[%clk 0:02:56.9]} 6... O-O {[%clk
0:02:38.7]} 7. b3 {[%clk 0:02:56.7]} 7... d6 {[%clk 0:02:38.7]} 8. Bb2 {[%clk
0:02:56.8]} 8... Nbd7 {[%clk 0:02:37.6]} 9. Rc1 {[%clk 0:02:56.4]} 9... Qe8
{[%clk 0:02:37]} 10. O-O {[%clk 0:02:56.4]} 10... e5 {[%clk 0:02:25.9]} 11. Bb1
{[%clk 0:02:52]} 11... e4 {[%clk 0:02:25.6]} 12. Nd2 {[%clk 0:02:50]} 12... Ng4
{[%clk 0:02:15.2]} 13. h3 {[%clk 0:02:47.5]} 13... Ngf6 {[%clk 0:02:14.4]} 14.
Qc2 {[%clk 0:02:45.1]} 14... Qe7 {[%clk 0:02:09]} 15. Rce1 {[%clk 0:02:43.5]}
15... Nh5 {[%clk 0:02:08.2]} 16. b4 {[%clk 0:02:23.9]} 16... Qh4 {[%clk
0:02:06]} 17. c5 {[%clk 0:02:19.2]} 17... d5 {[%clk 0:02:04.6]} 18. Nxd5 {[%clk
0:02:18.2]} 18... Ndf6 {[%clk 0:01:58.3]} 19. Nxc7 {[%clk 0:02:12.3]} 19... Rb8
{[%clk 0:01:58.1]} 20. Qc4+ {[%clk 0:02:09.2]} 20... Kh8 {[%clk 0:01:56.8]} 21.
Ne6 {[%clk 0:02:07.8]} 21... Bxe6 {[%clk 0:01:55.7]} 22. Qxe6 {[%clk 0:02:07.3]}
22... Rbe8 {[%clk 0:01:55.9]} 23. Qc4 {[%clk 0:02:03.4]} 23... f4 {[%clk
0:01:47.1]} 24. d5 {[%clk 0:01:54.9]} 24... f3 {[%clk 0:01:41.5]} 25. Nxf3
{[%clk 0:01:46.3]} 25... exf3 {[%clk 0:01:41.5]} 26. Qxh4 {[%clk 0:01:45.6]}
26... fxg2 {[%clk 0:01:40.4]} 27. Kxg2 {[%clk 0:01:42.9]} 27... Nxd5 {[%clk
0:01:30.3]} 28. Bxg7+ {[%clk 0:01:41.1]} 28... Kxg7 {[%clk 0:01:30]} 29. Qd4+
{[%clk 0:01:40.1]} 29... Kg8 {[%clk 0:01:28.6]} 30. Qxd5+ {[%clk 0:01:39.5]} 1-0

[Event "Betsys MČR v online bleskovém šachu 2021"]
[Site "Chess.com"]
[Date "2021.04.17"]
[Round "5"]
[White "5265"]
[Black "Stalri"]
[Result "0-1"]
[WhiteElo "1626"]
[BlackElo "2195"]
[TimeControl "180+1"]
[EndTime "9:44:37 PDT"]
[Termination "Uživatel Stalri zvítězil matem"]

1. e4 {[%clk 0:03:00.9]} 1... c5 {[%clk 0:02:49.8]} 2. c3 {[%clk 0:03:00.7]}
2... Nf6 {[%clk 0:02:48]} 3. e5 {[%clk 0:03:00.6]} 3... Nd5 {[%clk 0:02:47.8]}
4. d4 {[%clk 0:03:01.3]} 4... cxd4 {[%clk 0:02:46.4]} 5. cxd4 {[%clk 0:03:01.4]}
5... Nc6 {[%clk 0:02:46.9]} 6. Nf3 {[%clk 0:02:59.7]} 6... d6 {[%clk 0:02:47]}
7. h3 {[%clk 0:02:58.1]} 7... e6 {[%clk 0:02:46.9]} 8. Bb5 {[%clk 0:02:55.3]}
8... Qa5+ {[%clk 0:02:43.4]} 9. Nc3 {[%clk 0:02:54.9]} 9... Nxc3 {[%clk
0:02:43.7]} 10. Bxc6+ {[%clk 0:02:54.7]} 10... bxc6 {[%clk 0:02:43]} 11. Qd2
{[%clk 0:02:52.2]} 11... dxe5 {[%clk 0:02:37.6]} 12. dxe5 {[%clk 0:02:40.1]}
12... Bb4 {[%clk 0:02:16.3]} 13. a3 {[%clk 0:02:37]} 13... Nd5 {[%clk
0:02:14.9]} 14. axb4 {[%clk 0:02:37]} 14... Qxa1 {[%clk 0:02:14.8]} 15. O-O
{[%clk 0:02:36.2]} 15... Qa4 {[%clk 0:02:10.9]} 16. Nd4 {[%clk 0:02:31.9]} 16...
Ba6 {[%clk 0:02:08.7]} 17. Rd1 {[%clk 0:02:29.2]} 17... Qxb4 {[%clk 0:02:06.5]}
18. Nxc6 {[%clk 0:02:27.4]} 18... Qxd2 {[%clk 0:02:05.1]} 19. Bxd2 {[%clk
0:02:27.5]} 19... O-O {[%clk 0:02:02.7]} 20. Bb4 {[%clk 0:02:21.5]} 20... Rfc8
{[%clk 0:01:58.3]} 21. Rxd5 {[%clk 0:02:12.3]} 21... exd5 {[%clk 0:01:57.8]} 22.
Ne7+ {[%clk 0:02:12.4]} 22... Kh8 {[%clk 0:01:58.4]} 23. Nxc8 {[%clk 0:02:12.5]}
23... Rxc8 {[%clk 0:01:59.3]} 24. Bc3 {[%clk 0:02:11.1]} 24... Kg8 {[%clk
0:01:56.9]} 25. Kh2 {[%clk 0:02:10.2]} 25... Kf8 {[%clk 0:01:56.7]} 26. Kg3
{[%clk 0:02:10.9]} 26... Ke7 {[%clk 0:01:57.2]} 27. Kf4 {[%clk 0:02:10.9]} 27...
Ke6 {[%clk 0:01:57.7]} 28. Ke3 {[%clk 0:02:09]} 28... Rc4 {[%clk 0:01:58]} 29.
f4 {[%clk 0:02:06.9]} 29... Re4+ {[%clk 0:01:57.9]} 30. Kf3 {[%clk 0:02:06.8]}
30... Be2+ {[%clk 0:01:52.8]} 31. Kg3 {[%clk 0:02:06.6]} 31... h5 {[%clk
0:01:51]} 32. Kf2 {[%clk 0:02:06.5]} 32... Bd1 {[%clk 0:01:50.2]} 33. Kg3 {[%clk
0:02:05.2]} 33... Kf5 {[%clk 0:01:47.6]} 34. h4 {[%clk 0:02:01.4]} 34... Bg4
{[%clk 0:01:46]} 35. Bd2 {[%clk 0:01:56.9]} 35... Re2 {[%clk 0:01:45]} 36. Bc1
{[%clk 0:01:52.6]} 36... Ke4 {[%clk 0:01:44.3]} 37. b4 {[%clk 0:01:51.9]} 37...
Rc2 {[%clk 0:01:43.2]} 38. Ba3 {[%clk 0:01:51.4]} 38... Rc3+ {[%clk 0:01:43.5]}
39. Kf2 {[%clk 0:01:49.9]} 39... Rxa3 {[%clk 0:01:44.4]} 40. g3 {[%clk
0:01:50.3]} 40... Ra2+ {[%clk 0:01:43.9]} 41. Kg1 {[%clk 0:01:50.1]} 41... Kf3
{[%clk 0:01:43.9]} 42. e6 {[%clk 0:01:50]} 42... fxe6 {[%clk 0:01:43.3]} 43. f5
{[%clk 0:01:49.8]} 43... Kxg3 {[%clk 0:01:43.2]} 44. Kf1 {[%clk 0:01:48.4]}
44... Ra1# {[%clk 0:01:43.3]} 0-1

[Event "Betsys MČR v online bleskovém šachu 2021"]
[Site "Chess.com"]
[Date "2021.04.17"]
[Round "5"]
[White "EliasD123"]
[Black "kol340"]
[Result "0-1"]
[WhiteElo "1305"]
[BlackElo "1836"]
[TimeControl "180+1"]
[EndTime "9:44:43 PDT"]
[Termination "Uživatel kol340 zvítězil po vzdání soupeře"]

1. e4 {[%clk 0:03:00.9]} 1... c6 {[%clk 0:02:58.4]} 2. d4 {[%clk 0:03:00.2]}
2... d5 {[%clk 0:02:58.9]} 3. exd5 {[%clk 0:03:00.2]} 3... cxd5 {[%clk
0:02:59.4]} 4. Nc3 {[%clk 0:03:00.8]} 4... Nf6 {[%clk 0:02:59.9]} 5. Nf3 {[%clk
0:03:01.2]} 5... Nc6 {[%clk 0:03:00.4]} 6. Bf4 {[%clk 0:03:01.5]} 6... a6 {[%clk
0:02:59.9]} 7. h3 {[%clk 0:03:01.3]} 7... Bf5 {[%clk 0:03:00]} 8. Bd3 {[%clk
0:03:00.6]} 8... Bg6 {[%clk 0:02:59.5]} 9. Qd2 {[%clk 0:02:57.8]} 9... e6 {[%clk
0:02:59.1]} 10. a3 {[%clk 0:02:56.8]} 10... Rc8 {[%clk 0:02:58.5]} 11. O-O
{[%clk 0:02:51.1]} 11... Bd6 {[%clk 0:02:57.4]} 12. Rfe1 {[%clk 0:02:46]} 12...
O-O {[%clk 0:02:56.1]} 13. Bxd6 {[%clk 0:02:38.8]} 13... Qxd6 {[%clk 0:02:57]}
14. Qe3 {[%clk 0:02:33.2]} 14... b5 {[%clk 0:02:55.8]} 15. b4 {[%clk 0:02:30.1]}
15... Qc7 {[%clk 0:02:51.2]} 16. Bxg6 {[%clk 0:02:11.5]} 16... hxg6 {[%clk
0:02:50.6]} 17. Qg5 {[%clk 0:02:07.3]} 17... Nxd4 {[%clk 0:02:37.8]} 18. Nxd4
{[%clk 0:01:57.8]} 18... Qxc3 {[%clk 0:02:36.6]} 19. Rad1 {[%clk 0:01:49.4]}
19... Ne4 {[%clk 0:02:28.8]} 20. Qg4 {[%clk 0:01:42.3]} 20... Rc4 {[%clk
0:02:19.9]} 21. Nxe6 {[%clk 0:01:28.6]} 21... Nxf2 {[%clk 0:01:48.5]} 22. Qh4
{[%clk 0:01:12.1]} 22... Rxh4 {[%clk 0:01:28.7]} 23. Nxf8 {[%clk 0:01:10]} 0-1